fUST/lending_fUST_20240804
["ID","MTS","AMOUNT","RATE_DAILY","PERIOD"]
[334060325,1722713445837,-247.60749129,0.00013972,2]
[334060327,1722713445846,-500.0,0.00013972,2]
[334060329,1722713445856,-151.0,0.00013972,2]
[334060331,1722713445866,-500.0,0.00013972,2]
[334060333,1722713445876,-500.0,0.00013972,2]
[334060335,1722713445886,-500.0,0.00013972,2]
[334060337,1722713445896,-500.0,0.00013972,2]
[334060339,1722713445906,-151.0,0.00013972,2]
[334060341,1722713445916,-500.0,0.00013972,2]
[334060343,1722713445926,-151.0,0.00013972,2]
[334060345,1722713445936,-151.0,0.00013972,2]
[334060347,1722713445946,-500.0,0.00013972,2]
[334060349,1722713445955,-280.416944,0.00013972,2]
[334060351,1722713445965,-500.0,0.00013972,2]
[334060353,1722713445975,-500.0,0.00013972,2]
[334060355,1722713445985,-500.0,0.00013972,2]
[334060357,1722713445994,-500.0,0.00013972,2]
[334060358,1722713446004,-500.0,0.00013972,2]
[334060361,1722713446014,-500.0,0.00013972,2]
[334060362,1722713446024,-151.0,0.00013972,2]
[334060365,1722713446038,-500.0,0.00013972,2]
[334060367,1722713446049,-151.0,0.00013972,2]
[334060368,1722713446059,-594.27,0.00013972,2]
[334060370,1722713446073,-513.72347652,0.00013972,2]
[334060372,1722713446082,-500.0,0.00013972,2]
[334060374,1722713446092,-151.0,0.00013972,2]
[334060376,1722713446101,-500.0,0.00013972,2]
[334060378,1722713446112,-500.0,0.00013972,2]
[334060380,1722713446122,-315.826063,0.00013972,2]
[334060382,1722713446132,-315.826063,0.00013972,2]
[334060384,1722713446143,-500.0,0.00013972,2]
[334060386,1722713446153,-151.0,0.00013972,2]
[334060388,1722713446163,-151.0,0.00013972,2]
[334060390,1722713446173,-500.0,0.00013972,2]
[334060392,1722713446183,-500.0,0.00013972,2]
[334060394,1722713446193,-151.0,0.00013972,2]
[334060396,1722713446202,-106.91796116,0.00013972,2]
[334060405,1722713446281,-273.37336231,9.9e-05,2]
[334060407,1722713446291,-2201.91203884,0.00013972,2]
[334060408,1722713446300,-506.68472887,0.00013972,2]
[334060411,1722713446310,-765.91,0.00013972,2]
[334060413,1722713446320,-500.0,0.00013972,2]
[334060414,1722713446329,-733.14,0.00013972,2]
[334060417,1722713446339,-151.0,0.00013972,2]
[334060418,1722713446348,-726.54,0.00013972,2]
[334060420,1722713446359,-500.0,0.00013972,2]
[334060422,1722713446369,-500.0,0.00013972,2]
[334060424,1722713446378,-500.0,0.00013972,2]
[334060426,1722713446388,-151.0,0.00013972,2]
[334060428,1722713446397,-780.51,0.00013972,2]
[334060430,1722713446407,-459.20554726,0.00013972,2]
[334060452,1722713447987,-1160.89139449,0.0001212,2]
[334060454,1722713447996,-39.97860551,0.00013698,2]
[334060456,1722713448007,-294.88879449,0.00013698,2]
[334060458,1722713448017,-2186.76445274,0.00013972,2]
[334060460,1722713448031,-151.0,0.00013972,2]
[334060462,1722713448040,-500.0,0.00013972,2]
[334060464,1722713448050,-500.0,0.00013972,2]
[334060466,1722713448060,-151.0,0.00013972,2]
[334060467,1722713448073,-151.0,0.00013972,2]
[334060469,1722713448082,-1403.71,0.00013972,2]
[334060471,1722713448092,-500.0,0.00013972,2]
[334060473,1722713448102,-500.0,0.00013972,2]
[334060475,1722713448111,-151.0,0.00013972,2]
[334060477,1722713448121,-516.89,0.00013972,2]
[334060479,1722713448130,-500.0,0.00013972,2]
[334060481,1722713448141,-182.02979296,0.00013972,2]
[334060483,1722713448152,-500.0,0.00013972,2]
[334060485,1722713448162,-667.68,0.00013972,2]
[334060487,1722713448171,-500.0,0.00013972,2]
[334060489,1722713448182,-500.0,0.00013972,2]
[334060500,1722713448284,-500.0,0.00013972,2]
[334060502,1722713448294,-500.0,0.00013972,2]
[334060504,1722713448305,-500.0,0.00013972,2]
[334060506,1722713448315,-563.01,0.00013972,2]
[334060508,1722713448324,-81.02695979,0.00013972,2]
[334060514,1722714349328,-365.25562911,9.899e-05,2]
[334060515,1722714349359,-209.85118264,9.999e-05,2]
[334060516,1722714349385,-155.40444647,9.999e-05,2]
[334060517,1722714349411,-156.57079759,9.999e-05,2]
[334060518,1722714349439,-163.05415597,9.999e-05,2]
[334060519,1722714349463,-555.94182926,9.999e-05,2]
[334060520,1722714349490,-295.94661305,9.999e-05,2]
[334060521,1722714349514,-371.9189706,0.0001,2]
[334060522,1722714349538,-1102.65984791,0.00012044,2]
[334060523,1722714437105,-365.25562911,9.8e-05,2]
[334060524,1722714437128,-196.45354811,9.999e-05,2]
[334060525,1722714437149,-196.45354811,9.999e-05,2]
[334060526,1722714437173,-130.69254342,0.00012044,2]
[334060529,1722714570101,-273.37336231,9.9e-05,2]
[334060530,1722714570122,-288.50805677,9.999e-05,2]
[334060531,1722714577685,273.37336231,9.9e-05,2]
[334060532,1722714586327,273.37336231,9.9e-05,2]
[334060533,1722714594348,273.37336231,9.9e-05,2]
[334060534,1722714602350,273.37336231,9.9e-05,2]
[334060535,1722714610377,273.37336231,9.9e-05,2]
[334060536,1722714618283,273.37336231,9.9e-05,2]
[334060537,1722714626889,218.30768663,9.9e-05,2]
[334060538,1722714626949,273.37336231,9.9e-05,2]
[334060539,1722714629085,767.33992398,9.9e-05,2]
[334060563,1722714632177,-2833.28421105,9.9e-05,2]
[334060582,1722714638049,-14299.52156157,9.801e-05,2]
[334060583,1722714638059,-11466.23735052,9.9e-05,2]
[334060584,1722714638068,-2107.67550275,9.9e-05,2]
[334060585,1722714638078,-2255.01797592,9.9e-05,2]
[334060586,1722714638087,-65424.6341149,0.00012034,2]
[334060587,1722714638096,-23666.64760867,0.00012044,2]
[334060588,1722714638106,-3608.33001858,0.00012044,2]
[334060589,1722714638115,-1492.75012023,0.00012044,2]
[334060590,1722714638125,-206.48402325,0.00012044,2]
[334060591,1722714638134,-291461.07598542,0.00012044,2]
[334060592,1722714638143,-200.0,0.00012073,2]
[334060593,1722714638152,-166.666667,0.00012261,2]
[334060594,1722714638162,-166.666667,0.0001258,2]
[334060595,1722714638171,-166.666667,0.000129,2]
[334060596,1722714638179,-2257.72167257,0.000129,2]
[334060597,1722714638188,-167.507494,0.00012986,2]
[334060598,1722714638198,-400.0,0.00013442,2]
[334060600,1722714638211,-678.58508341,0.00013598,2]
[334060601,1722714638221,-678.58508337,0.00013667,2]
[334060602,1722714638230,-1388.83,0.00013687,2]
[334060603,1722714638238,-32712.3170574,0.00013688,2]
[334060604,1722714638247,-1388.83,0.00013697,2]
[334060605,1722714638258,-1388.83,0.00013697,2]
[334060606,1722714638269,-9520.10364507,0.00013698,5]
[334060607,1722714638279,-500.0,0.00013698,2]
[334060608,1722714638287,-500.0,0.00013698,2]
[334060609,1722714638296,-500.0,0.00013698,2]
[334060610,1722714638305,-500.0,0.00013698,2]
[334060611,1722714638314,-500.0,0.00013698,2]
[334060612,1722714638324,-161.66849535,0.00013698,2]
[334060613,1722714638332,-500.0,0.00013698,2]
[334060614,1722714638342,-500.0,0.00013698,2]
[334060615,1722714638351,-500.0,0.00013698,2]
[334060616,1722714638361,-500.0,0.00013698,2]
[334060617,1722714638371,-500.0,0.00013698,2]
[334060618,1722714638381,-500.0,0.00013698,2]
[334060619,1722714638392,-416.26590705,0.00013698,2]
[334060620,1722714638403,-500.0,0.00013698,2]
[334060621,1722714638412,-662.5,0.00013698,2]
[334060622,1722714638423,-500.0,0.00013698,2]
[334060623,1722714638437,-500.0,0.00013698,2]
[334060624,1722714638546,-500.0,0.00013698,2]
[334060625,1722714638558,-500.0,0.00013698,2]
[334060626,1722714638569,-500.0,0.00013698,2]
[334060627,1722714638580,-253.75529796,0.00013698,2]
[334060628,1722714638590,-500.0,0.00013698,2]
[334060629,1722714638601,-500.0,0.00013698,2]
[334060630,1722714638612,-500.0,0.00013698,2]
[334060631,1722714638624,-524.64534186,0.00013698,2]
[334060632,1722714638634,-500.0,0.00013698,2]
[334060633,1722714638645,-500.0,0.00013698,2]
[334060634,1722714638655,-500.0,0.00013698,2]
[334060635,1722714638664,-500.0,0.00013698,2]
[334060636,1722714638674,-500.0,0.00013698,2]
[334060638,1722714638687,-500.0,0.00013698,2]
[334060639,1722714638696,-500.0,0.00013698,2]
[334060640,1722714638706,-500.0,0.00013698,2]
[334060641,1722714638715,-500.0,0.00013698,2]
[334060642,1722714638724,-500.0,0.00013698,2]
[334060643,1722714638733,-500.0,0.00013698,2]
[334060644,1722714638743,-600.49035524,0.00013698,2]
[334060645,1722714638754,-500.0,0.00013698,2]
[334060646,1722714638763,-500.0,0.00013698,2]
[334060647,1722714638773,-500.0,0.00013698,2]
[334060648,1722714638783,-586.83749382,0.00013698,2]
[334060649,1722714638793,-500.0,0.00013698,2]
[334060650,1722714638802,-500.0,0.00013698,2]
[334060651,1722714638812,-500.0,0.00013698,2]
[334060652,1722714638823,-500.0,0.00013698,2]
[334060653,1722714638832,-500.0,0.00013698,2]
[334060654,1722714638844,-500.0,0.00013698,2]
[334060655,1722714638854,-500.0,0.00013698,2]
[334060656,1722714638864,-500.0,0.00013698,2]
[334060657,1722714638874,-569.51,0.00013698,2]
[334060658,1722714638883,-500.0,0.00013698,2]
[334060659,1722714638893,-500.0,0.00013698,2]
[334060660,1722714638903,-500.0,0.00013698,2]
[334060661,1722714638913,-500.0,0.00013698,2]
[334060662,1722714638925,-500.0,0.00013698,2]
[334060663,1722714638934,-500.0,0.00013698,2]
[334060664,1722714638943,-500.0,0.00013698,2]
[334060665,1722714638952,-500.0,0.00013698,2]
[334060666,1722714638962,-500.0,0.00013698,2]
[334060667,1722714638971,-500.0,0.00013698,2]
[334060668,1722714638980,-500.0,0.00013698,2]
[334060669,1722714638989,-500.0,0.00013698,2]
[334060670,1722714638999,-500.0,0.00013698,2]
[334060671,1722714639010,-500.0,0.00013698,2]
[334060672,1722714639019,-500.0,0.00013698,2]
[334060673,1722714639028,-500.0,0.00013698,2]
[334060674,1722714639037,-500.0,0.00013698,2]
[334060675,1722714639046,-500.0,0.00013698,2]
[334060676,1722714639056,-207.35046671,0.00013698,2]
[334060677,1722714639066,-500.0,0.00013698,2]
[334060678,1722714639076,-500.0,0.00013698,2]
[334060679,1722714639086,-500.0,0.00013698,2]
[334060680,1722714639095,-192.18361047,0.00013698,2]
[334060681,1722714639105,-500.0,0.00013698,2]
[334060682,1722714639114,-500.0,0.00013698,2]
[334060683,1722714639124,-500.70732046,0.00013698,2]
[334060684,1722714639134,-514.21193268,0.00013698,2]
[334060685,1722714639145,-500.0,0.00013698,2]
[334060686,1722714639155,-500.0,0.00013698,2]
[334060687,1722714639164,-500.0,0.00013698,2]
[334060688,1722714639174,-500.0,0.00013698,2]
[334060689,1722714639184,-500.0,0.00013698,2]
[334060690,1722714639193,-500.0,0.00013698,2]
[334060691,1722714639203,-500.0,0.00013698,2]
[334060692,1722714639212,-500.0,0.00013698,2]
[334060693,1722714639223,-500.0,0.00013698,2]
[334060694,1722714639233,-500.0,0.00013698,2]
[334060695,1722714639243,-500.0,0.00013698,2]
[334060696,1722714639254,-500.0,0.00013698,2]
[334060697,1722714639263,-500.0,0.00013698,2]
[334060698,1722714639272,-67.84107532,0.00013698,2]
[334060775,1722714642597,-432.15892468,0.00013698,2]
[334060778,1722714642606,-183.52297265,0.00013698,2]
[334060780,1722714642615,-500.0,0.00013698,2]
[334060782,1722714642623,-500.0,0.00013698,2]
[334060784,1722714642632,-500.0,0.00013698,2]
[334060786,1722714642641,-500.0,0.00013698,2]
[334060788,1722714642651,-500.0,0.00013698,2]
[334060789,1722714642659,-500.0,0.00013698,2]
[334060791,1722714642668,-500.0,0.00013698,2]
[334060794,1722714642677,-946.99,0.00013698,2]
[334060796,1722714642686,-500.0,0.00013698,2]
[334060798,1722714642695,-500.0,0.00013698,2]
[334060800,1722714642704,-696.27,0.00013698,2]
[334060802,1722714642713,-500.0,0.00013698,2]
[334060804,1722714642722,-162.00744885,0.00013698,2]
[334060806,1722714642730,-500.0,0.00013698,2]
[334060808,1722714642739,-500.0,0.00013698,2]
[334060810,1722714642748,-500.0,0.00013698,2]
[334060812,1722714642761,-500.0,0.00013698,2]
[334060813,1722714642770,-500.0,0.00013698,2]
[334060815,1722714642779,-521.32953653,0.00013698,2]
[334060817,1722714642788,-500.0,0.00013698,2]
[334060819,1722714642798,-500.0,0.00013698,2]
[334060821,1722714642808,-500.0,0.00013698,2]
[334060823,1722714642818,-500.0,0.00013698,2]
[334060826,1722714642829,-500.0,0.00013698,2]
[334060827,1722714642838,-747.98,0.00013698,2]
[334060829,1722714642848,-2535.72,0.00013698,2]
[334060831,1722714642857,-541.04651879,0.00013698,2]
[334060833,1722714642866,-500.0,0.00013698,2]
[334060835,1722714642875,-500.0,0.00013698,2]
[334060837,1722714642884,-500.0,0.00013698,2]
[334060839,1722714642893,-514.44022575,0.00013698,2]
[334060841,1722714642903,-500.0,0.00013698,2]
[334060843,1722714642912,-500.0,0.00013698,2]
[334060844,1722714642921,-500.0,0.00013698,2]
[334060846,1722714642930,-500.0,0.00013698,2]
[334060848,1722714642939,-1345.23,0.00013698,2]
[334060850,1722714642948,-538.13829388,0.00013698,2]
[334060852,1722714642957,-500.0,0.00013698,2]
[334060854,1722714642967,-500.0,0.00013698,2]
[334060856,1722714642976,-500.0,0.00013698,2]
[334060858,1722714642985,-500.0,0.00013698,2]
[334060860,1722714642994,-500.0,0.00013698,2]
[334060862,1722714643003,-500.0,0.00013698,2]
[334060864,1722714643013,-500.0,0.00013698,2]
[334060866,1722714643022,-500.0,0.00013698,2]
[334060867,1722714643030,-500.0,0.00013698,2]
[334060869,1722714643039,-500.0,0.00013698,2]
[334060871,1722714643048,-500.0,0.00013698,2]
[334060873,1722714643057,-500.0,0.00013698,2]
[334060875,1722714643067,-660.91,0.00013698,2]
[334060877,1722714643075,-500.0,0.00013698,2]
[334060879,1722714643085,-500.0,0.00013698,2]
[334060881,1722714643094,-500.0,0.00013698,2]
[334060883,1722714643103,-500.0,0.00013698,2]
[334060885,1722714643114,-500.0,0.00013698,2]
[334060887,1722714643123,-500.0,0.00013698,2]
[334060889,1722714643132,-500.0,0.00013698,2]
[334060891,1722714643142,-500.0,0.00013698,2]
[334060893,1722714643151,-500.0,0.00013698,2]
[334060895,1722714643160,-500.0,0.00013698,2]
[334060897,1722714643169,-500.0,0.00013698,2]
[334060899,1722714643178,-500.0,0.00013698,2]
[334060901,1722714643187,-500.0,0.00013698,2]
[334060903,1722714643197,-500.0,0.00013698,2]
[334060905,1722714643206,-500.0,0.00013698,2]
[334060907,1722714643216,-500.0,0.00013698,2]
[334060908,1722714643225,-500.0,0.00013698,2]
[334060910,1722714643234,-500.0,0.00013698,2]
[334060912,1722714643243,-500.0,0.00013698,2]
[334060914,1722714643253,-500.0,0.00013698,2]
[334060916,1722714643263,-189.16420561,0.00013698,2]
[334060919,1722714643284,-310.83579439,0.00013698,2]
[334060921,1722714643293,-500.0,0.00013698,2]
[334060923,1722714643302,-500.0,0.00013698,2]
[334060925,1722714643311,-500.0,0.00013698,2]
[334060927,1722714643319,-500.0,0.00013698,2]
[334060929,1722714643328,-500.0,0.00013698,2]
[334060930,1722714643337,-500.0,0.00013698,2]
[334060932,1722714643346,-500.0,0.00013698,2]
[334060934,1722714643356,-500.0,0.00013698,2]
[334060936,1722714643365,-500.0,0.00013698,2]
[334060938,1722714643374,-206.77953224,0.00013698,2]
[334060940,1722714643386,-293.22046776,0.00013698,2]
[334060941,1722714643395,-500.0,0.00013698,2]
[334060943,1722714643404,-500.0,0.00013698,2]
[334060945,1722714643414,-610.33840908,0.00013698,2]
[334060947,1722714643423,-500.0,0.00013698,2]
[334060949,1722714643436,-500.0,0.00013698,2]
[334060951,1722714643445,-500.0,0.00013698,2]
[334060953,1722714643456,-500.0,0.00013698,2]
[334060954,1722714643467,-188.66237129,0.00013698,2]
[334060955,1722714643476,-500.0,0.00013698,2]
[334060956,1722714643485,-500.0,0.00013698,2]
[334060957,1722714643494,-500.0,0.00013698,2]
[334060958,1722714643503,-500.0,0.00013698,2]
[334060959,1722714643514,-445.78366679,0.00013698,2]
[334060960,1722714643525,-248.46766945,0.00013698,2]
[334060961,1722714643533,-500.0,0.00013698,2]
[334060962,1722714643542,-310.52935477,0.00013698,2]
[334060963,1722714643551,-500.0,0.00013698,2]
[334060964,1722714643561,-500.0,0.00013698,2]
[334060965,1722714643570,-500.0,0.00013698,2]
[334060966,1722714643579,-500.0,0.00013698,2]
[334060967,1722714643587,-500.0,0.00013698,2]
[334060968,1722714643598,-500.0,0.00013698,2]
[334060969,1722714643607,-500.0,0.00013698,2]
[334060970,1722714643616,-500.0,0.00013698,2]
[334060971,1722714643625,-500.0,0.00013698,2]
[334060972,1722714643634,-500.0,0.00013698,2]
[334060973,1722714643643,-592.33101691,0.00013698,2]
[334060974,1722714643652,-500.0,0.00013698,2]
[334060975,1722714643661,-500.0,0.00013698,2]
[334060976,1722714643670,-500.0,0.00013698,2]
[334060977,1722714643679,-500.0,0.00013698,2]
[334060978,1722714643689,-500.0,0.00013698,2]
[334060979,1722714643698,-500.0,0.00013698,2]
[334060980,1722714643707,-500.0,0.00013698,2]
[334060981,1722714643716,-500.0,0.00013698,2]
[334060982,1722714643811,-500.0,0.00013698,2]
[334060983,1722714643820,-500.0,0.00013698,2]
[334060984,1722714643830,-500.0,0.00013698,2]
[334060985,1722714643839,-2011.14,0.00013698,2]
[334060986,1722714643849,-500.0,0.00013698,2]
[334060987,1722714643858,-500.0,0.00013698,2]
[334060988,1722714643867,-504.82750399,0.00013698,2]
[334060989,1722714643876,-320.51396772,0.00013698,2]
[334060990,1722714643886,-500.0,0.00013698,2]
[334060991,1722714643895,-499.99999999,0.00013698,2]
[334060993,1722714643905,-500.0,0.00013698,2]
[334060994,1722714643915,-528.97781954,0.00013698,2]
[334060996,1722714643924,-500.0,0.00013698,2]
[334060997,1722714643933,-539.28,0.00013698,2]
[334060999,1722714643943,-500.0,0.00013698,2]
[334061001,1722714643952,-534.0,0.00013698,2]
[334061003,1722714643961,-500.0,0.00013698,2]
[334061005,1722714643970,-500.0,0.00013698,2]
[334061007,1722714643979,-500.0,0.00013698,2]
[334061009,1722714643989,-500.0,0.00013698,2]
[334061011,1722714644000,-780.79,0.00013698,2]
[334061013,1722714644011,-505.15509623,0.00013698,2]
[334061015,1722714644020,-500.0,0.00013698,2]
[334061017,1722714644029,-1496.18,0.00013698,2]
[334061019,1722714644038,-500.73041792,0.00013698,2]
[334061021,1722714644047,-500.0,0.00013698,2]
[334061023,1722714644056,-500.0,0.00013698,2]
[334061025,1722714644067,-500.0,0.00013698,2]
[334061027,1722714644076,-500.0,0.00013698,2]
[334061029,1722714644085,-500.0,0.00013698,2]
[334061031,1722714644094,-500.0,0.00013698,2]
[334061033,1722714644104,-500.0,0.00013698,2]
[334061035,1722714644113,-402.92015911,0.00013698,2]
[334061037,1722714644122,-500.0,0.00013698,2]
[334061039,1722714644131,-500.0,0.00013698,2]
[334061041,1722714644140,-500.0,0.00013698,2]
[334061043,1722714644149,-500.0,0.00013698,2]
[334061044,1722714644158,-500.0,0.00013698,2]
[334061046,1722714644169,-500.0,0.00013698,2]
[334061048,1722714644178,-500.0,0.00013698,2]
[334061050,1722714644188,-500.0,0.00013698,2]
[334061051,1722714644197,-500.0,0.00013698,2]
[334061052,1722714644208,-500.0,0.00013698,2]
[334061053,1722714644218,-500.0,0.00013698,2]
[334061054,1722714644227,-500.0,0.00013698,2]
[334061055,1722714644237,-500.0,0.00013698,2]
[334061058,1722714644247,-224.30701069,0.00013698,2]
[334061059,1722714644260,-500.0,0.00013698,2]
[334061060,1722714644270,-540.64,0.00013698,2]
[334061062,1722714644279,-500.0,0.00013698,2]
[334061064,1722714644288,-500.0,0.00013698,2]
[334061066,1722714644297,-151.0,0.00013698,2]
[334061068,1722714644306,-500.0,0.00013698,2]
[334061070,1722714644316,-500.0,0.00013698,2]
[334061072,1722714644325,-500.0,0.00013698,2]
[334061074,1722714644334,-507.34818783,0.00013698,2]
[334061076,1722714644343,-500.0,0.00013698,2]
[334061078,1722714644352,-574.09764681,0.00013698,2]
[334061080,1722714644361,-500.0,0.00013698,2]
[334061082,1722714644371,-500.0,0.00013698,2]
[334061084,1722714644380,-500.0,0.00013698,2]
[334061086,1722714644389,-218.04690979,0.00013698,2]
[334061088,1722714644398,-500.0,0.00013698,2]
[334061090,1722714644408,-500.0,0.00013698,2]
[334061092,1722714644417,-159.98140171,0.00013698,2]
[334061094,1722714644428,-500.0,0.00013698,2]
[334061096,1722714644441,-500.0,0.00013698,2]
[334061098,1722714644450,-500.0,0.00013698,2]
[334061100,1722714644459,-525.27,0.00013698,2]
[334061102,1722714644469,-525.27,0.00013698,2]
[334061104,1722714644479,-500.0,0.00013698,2]
[334061106,1722714644488,-525.27,0.00013698,2]
[334061108,1722714644497,-525.27,0.00013698,2]
[334061110,1722714644508,-500.0,0.00013698,2]
[334061112,1722714644517,-500.0,0.00013698,2]
[334061114,1722714644526,-647.08,0.00013698,2]
[334061116,1722714644535,-326.03432267,0.00013698,2]
[334061117,1722714644544,-500.0,0.00013698,2]
[334061119,1722714644553,-500.0,0.00013698,2]
[334061122,1722714644563,-500.0,0.00013698,2]
[334061123,1722714644574,-500.0,0.00013698,2]
[334061124,1722714644583,-500.0,0.00013698,2]
[334061125,1722714644592,-500.0,0.00013698,2]
[334061126,1722714644601,-500.0,0.00013698,2]
[334061127,1722714644610,-500.0,0.00013698,2]
[334061128,1722714644619,-500.0,0.00013698,2]
[334061129,1722714644629,-500.0,0.00013698,2]
[334061130,1722714644637,-500.0,0.00013698,2]
[334061131,1722714644646,-500.0,0.00013698,2]
[334061132,1722714644655,-512.33435201,0.00013698,2]
[334061133,1722714644664,-500.0,0.00013698,2]
[334061134,1722714644674,-500.0,0.00013698,2]
[334061135,1722714644683,-500.0,0.00013698,2]
[334061136,1722714644692,-500.0,0.00013698,2]
[334061137,1722714644701,-151.0,0.00013698,2]
[334061138,1722714644710,-500.0,0.00013698,2]
[334061139,1722714644719,-500.0,0.00013698,2]
[334061140,1722714644728,-504.10445539,0.00013698,2]
[334061141,1722714644737,-236.665826,0.00013698,2]
[334061142,1722714644746,-185.56716322,0.00013698,2]
[334061143,1722714644755,-500.0,0.00013698,2]
[334061144,1722714644766,-500.0,0.00013698,2]
[334061145,1722714644775,-500.0,0.00013698,2]
[334061146,1722714644784,-170.67399696,0.00013698,2]
[334061147,1722714644794,-500.0,0.00013698,2]
[334061148,1722714644803,-608.97687611,0.00013698,2]
[334061149,1722714644813,-500.0,0.00013698,2]
[334061150,1722714644823,-500.0,0.00013698,2]
[334061151,1722714644833,-500.0,0.00013698,2]
[334061152,1722714644842,-500.44427596,0.00013698,2]
[334061153,1722714644852,-500.0,0.00013698,2]
[334061154,1722714644861,-500.0,0.00013698,2]
[334061155,1722714644870,-500.0,0.00013698,2]
[334061156,1722714644879,-500.0,0.00013698,2]
[334061157,1722714644888,-500.0,0.00013698,2]
[334061158,1722714644898,-500.0,0.00013698,2]
[334061159,1722714644907,-500.0,0.00013698,2]
[334061160,1722714644916,-500.0,0.00013698,2]
[334061161,1722714644926,-500.0,0.00013698,2]
[334061162,1722714644935,-500.0,0.00013698,2]
[334061163,1722714644944,-500.0,0.00013698,2]
[334061164,1722714644953,-500.0,0.00013698,2]
[334061165,1722714644962,-2409.55,0.00013698,2]
[334061166,1722714644971,-500.0,0.00013698,2]
[334061167,1722714644981,-500.0,0.00013698,2]
[334061168,1722714644990,-500.0,0.00013698,2]
[334061169,1722714644998,-626.88022661,0.00013698,2]
[334061170,1722714645008,-799.8,0.00013698,2]
[334061171,1722714645017,-910.839265,0.00013699,2]
[334061172,1722714645026,-3000.0,0.00013699,2]
[334061173,1722714645036,-351.91565772,0.00013699,2]
[334061174,1722714645045,-150.112233,0.000137,2]
[334061175,1722714645054,-678.58508337,0.00013735,2]
[334061176,1722714645063,-678.58508337,0.00013804,2]
[334061177,1722714645073,-6354.68917356,0.00013804,2]
[334061178,1722714645082,-678.58508337,0.00013872,2]
[334061179,1722714645092,-2000.0,0.00013872,2]
[334061180,1722714645100,-10904.1056858,0.00013951,2]
[334061181,1722714645109,-151.0,0.00013952,2]
[334061182,1722714645118,-151.0,0.00013952,2]
[334061183,1722714645128,-21808.2113716,0.00013952,2]
[334061184,1722714645137,-525.27,0.0001396,2]
[334061185,1722714645146,-1388.83,0.00013961,2]
[334061186,1722714645155,-1388.83,0.00013961,2]
[334061187,1722714645165,-151.0,0.00013961,2]
[334061188,1722714645174,-151.0,0.00013961,2]
[334061189,1722714645183,-151.0,0.00013961,2]
[334061190,1722714645193,-151.0,0.00013961,2]
[334061191,1722714645201,-237.811782,0.00013961,2]
[334061192,1722714645211,-237.811782,0.00013961,2]
[334061193,1722714645220,-525.27,0.00013961,2]
[334061194,1722714645230,-525.27,0.00013961,2]
[334061195,1722714645238,-151.0,0.00013961,2]
[334061196,1722714645249,-151.0,0.00013961,2]
[334061197,1722714645259,-10904.1056858,0.00013962,2]
[334061198,1722714645268,-151.0,0.00013962,2]
[334061199,1722714645278,-252.66085,0.00013962,2]
[334061200,1722714645287,-252.66085,0.00013962,2]
[334061201,1722714645296,-151.0,0.00013962,2]
[334061202,1722714645305,-151.0,0.00013962,2]
[334061203,1722714645314,-367.828923,0.00013962,2]
[334061204,1722714645323,-183.323756,0.00013962,2]
[334061205,1722714645333,-367.828923,0.00013962,2]
[334061206,1722714645342,-151.0,0.00013962,2]